[Event "Titled Tuesday Blitz August 22 Early 2023"]
[White "Zampronha, Wladimir Camilo"]
[Black "Jovic, Stanoje"]
[WhiteFideId "2103087"]
[BlackFideId "905020"]
[WhiteElo "2283"]
[BlackElo "2532"]
[Result "0-1"]
[Round "4"]
[TimeControl "180+1"]
[Date "2023.08.22"]
[WhiteClock "0:00:00"]
[BlackClock "0:00:05"]
[Board "134"]

1. e4 {[%clk 0:03:00]}  c6 {[%clk 0:02:59]} 2. d4 {[%clk 0:03:00]}  d5 {[%clk 0:02:59]} 3. e5 {[%clk 0:03:00]}  c5 {[%clk 0:02:59]} 4. Nf3 {[%clk 0:02:59]}  Nc6 {[%clk 0:02:56]} 5. c4 {[%clk 0:02:59]}  Bg4 {[%clk 0:02:54]} 6. cxd5 {[%clk 0:02:58]}  Bxf3 {[%clk 0:02:52]} 7. Qxf3 {[%clk 0:02:32]}  Nxd4 {[%clk 0:02:52]} 8. Qe4 {[%clk 0:02:33]}  f5 {[%clk 0:02:51]} 9. exf6 {[%clk 0:02:06]}  Nxf6 {[%clk 0:02:51]} 10. Qe5 {[%clk 0:02:00]}  Nc2+ {[%clk 0:02:34]} 11. Kd1 {[%clk 0:01:57]}  Nxa1 {[%clk 0:02:33]} 12. Bb5+ {[%clk 0:01:56]}  Nd7 {[%clk 0:02:33]} 13. b3 {[%clk 0:01:45]}  a6 {[%clk 0:02:28]} 14. Bxd7+ {[%clk 0:01:40]}  Qxd7 {[%clk 0:02:28]} 15. Bb2 {[%clk 0:01:37]}  O-O-O {[%clk 0:02:25]} 16. Nc3 {[%clk 0:01:34]}  e6 {[%clk 0:02:08]} 17. Bxa1 {[%clk 0:01:32]}  exd5 {[%clk 0:02:07]} 18. Kc2 {[%clk 0:01:32]}  Bd6 {[%clk 0:01:56]} 19. Qxd5 {[%clk 0:01:29]}  Rhf8 {[%clk 0:01:47]} 20. f3 {[%clk 0:01:25]}  Qe8 {[%clk 0:01:28]} 21. Ne4 {[%clk 0:01:00]}  Qg6 {[%clk 0:01:26]} 22. Qg5 {[%clk 0:00:41]}  Qxg5 {[%clk 0:01:14]} 23. Nxg5 {[%clk 0:00:42]}  Bf4 {[%clk 0:01:13]} 24. Ne6 {[%clk 0:00:39]}  Rd2+ {[%clk 0:01:11]} 25. Kc3 {[%clk 0:00:38]}  Rxa2 {[%clk 0:01:05]} 26. Nxf8 {[%clk 0:00:33]}  Be5+ {[%clk 0:01:02]} 27. Kc4 {[%clk 0:00:32]}  Bxa1 {[%clk 0:00:56]} 28. Kxc5 {[%clk 0:00:31]}  Bf6 {[%clk 0:00:53]} 29. Nxh7 {[%clk 0:00:26]}  Rc2+ {[%clk 0:00:48]} 30. Kd5 {[%clk 0:00:24]}  Be7 {[%clk 0:00:46]} 31. g4 {[%clk 0:00:20]}  Rc3 {[%clk 0:00:43]} 32. f4 {[%clk 0:00:18]}  Rxb3 {[%clk 0:00:41]} 33. f5 {[%clk 0:00:19]}  Rh3 {[%clk 0:00:39]} 34. Ke6 {[%clk 0:00:18]}  Bd8 {[%clk 0:00:35]} 35. Nf8 {[%clk 0:00:18]}  b5 {[%clk 0:00:33]} 36. Kf7 {[%clk 0:00:14]}  b4 {[%clk 0:00:30]} 37. Kxg7 {[%clk 0:00:13]}  a5 {[%clk 0:00:30]} 38. Ng6 {[%clk 0:00:11]}  b3 {[%clk 0:00:27]} 39. g5 {[%clk 0:00:11]}  Bxg5 {[%clk 0:00:26]} 40. Ne5 {[%clk 0:00:08]}  b2 {[%clk 0:00:21]} 41. Rb1 {[%clk 0:00:06]}  Rxh2 {[%clk 0:00:18]} 42. Nf3 {[%clk 0:00:06]}  Rg2 {[%clk 0:00:15]} 43. Nxg5 {[%clk 0:00:05]}  Rxg5+ {[%clk 0:00:16]} 44. Kh6 {[%clk 0:00:06]}  Rg2 {[%clk 0:00:14]} 45. f6 {[%clk 0:00:05]}  Kd7 {[%clk 0:00:14]} 46. Re1 {[%clk 0:00:03]}  Re2 {[%clk 0:00:09]} 47. Rxe2 {[%clk 0:00:01]}  b1=Q {[%clk 0:00:08]} 48. f7 {[%clk 0:00:02]}  Qh1+ {[%clk 0:00:07]} 49. Kg7 {[%clk 0:00:02]}  Qg1+ {[%clk 0:00:07]} 50. Kh7 {[%clk 0:00:00]}  Qf1 {[%clk 0:00:05]} 0-1


[Site "https://www.chess.com"]

[Event "Titled Tuesday Blitz August 22 Early 2023"]
[White "Miguelitro69"]
[Black "Hajiyev, Kanan"]
[BlackFideId "13404148"]
[WhiteElo "2248"]
[BlackElo "2516"]
[Result "1-0"]
[Round "4"]
[TimeControl "180+1"]
[Date "2023.08.22"]
[WhiteClock "0:01:06"]
[BlackClock "0:01:23"]
[Board "135"]

1. e4 {[%clk 0:03:00]}  c6 {[%clk 0:03:00]} 2. d4 {[%clk 0:03:00]}  d5 {[%clk 0:03:01]} 3. Nc3 {[%clk 0:03:00]}  a6 {[%clk 0:03:02]} 4. Nge2 {[%clk 0:02:45]}  Bg4 {[%clk 0:03:00]} 5. f3 {[%clk 0:02:40]}  Bh5 {[%clk 0:03:00]} 6. Ng3 {[%clk 0:02:40]}  Bg6 {[%clk 0:03:01]} 7. Be2 {[%clk 0:02:35]}  e6 {[%clk 0:03:01]} 8. O-O {[%clk 0:02:35]}  Nf6 {[%clk 0:03:00]} 9. Kh1 {[%clk 0:02:35]}  Bb4 {[%clk 0:02:59]} 10. e5 {[%clk 0:02:34]}  Nfd7 {[%clk 0:02:59]} 11. f4 {[%clk 0:02:34]}  f5 {[%clk 0:02:43]} 12. exf6 {[%clk 0:02:24]}  Nxf6 {[%clk 0:02:40]} 13. Bg4 {[%clk 0:02:14]}  Nxg4 {[%clk 0:02:34]} 14. Qxg4 {[%clk 0:02:13]}  Qf6 {[%clk 0:02:34]} 15. f5 {[%clk 0:02:02]}  h5 {[%clk 0:02:12]} 16. Qxg6+ {[%clk 0:02:01]}  Qxg6 {[%clk 0:02:13]} 17. fxg6 {[%clk 0:02:01]}  h4 {[%clk 0:02:08]} 18. Nge2 {[%clk 0:02:01]}  Nd7 {[%clk 0:02:05]} 19. Bg5 {[%clk 0:02:00]}  h3 {[%clk 0:02:04]} 20. g3 {[%clk 0:01:57]}  e5 {[%clk 0:02:05]} 21. dxe5 {[%clk 0:01:52]}  Nxe5 {[%clk 0:02:06]} 22. Nd4 {[%clk 0:01:51]}  Nxg6 {[%clk 0:02:02]} 23. Rae1+ {[%clk 0:01:49]}  Kd7 {[%clk 0:01:56]} 24. Rf7+ {[%clk 0:01:48]}  Kd6 {[%clk 0:01:55]} 25. Rxg7 {[%clk 0:01:45]}  Rhg8 {[%clk 0:01:51]} 26. Nf5+ {[%clk 0:01:37]}  Kc5 {[%clk 0:01:50]} 27. Be3+ {[%clk 0:01:33]}  Kc4 {[%clk 0:01:46]} 28. a3 {[%clk 0:01:25]}  Rxg7 {[%clk 0:01:38]} 29. axb4 {[%clk 0:01:24]}  Rd7 {[%clk 0:01:34]} 30. Bc5 {[%clk 0:01:08]}  Rad8 {[%clk 0:01:23]} 31. Ne3# {[%clk 0:01:06]} 1-0


[Site "https://www.chess.com"]

[Event "Titled Tuesday Blitz August 22 Early 2023"]
[White "matenitian"]
[Black "Tharushi, T H D Niklesha"]
[BlackFideId "9918264"]
[WhiteElo "2513"]
[BlackElo "2191"]
[Result "1-0"]
[Round "4"]
[TimeControl "180+1"]
[Date "2023.08.22"]
[WhiteClock "0:00:13"]
[BlackClock "0:00:30"]
[Board "136"]

1. e4 {[%clk 0:03:00]}  c5 {[%clk 0:03:00]} 2. Nc3 {[%clk 0:03:00]}  e6 {[%clk 0:02:57]} 3. Nf3 {[%clk 0:02:56]}  Nc6 {[%clk 0:02:57]} 4. g3 {[%clk 0:02:54]}  Nge7 {[%clk 0:02:56]} 5. Bg2 {[%clk 0:02:43]}  g6 {[%clk 0:02:56]} 6. O-O {[%clk 0:02:43]}  Bg7 {[%clk 0:02:56]} 7. d3 {[%clk 0:02:43]}  O-O {[%clk 0:02:56]} 8. Be3 {[%clk 0:02:39]}  b6 {[%clk 0:02:56]} 9. d4 {[%clk 0:02:31]}  cxd4 {[%clk 0:02:54]} 10. Nxd4 {[%clk 0:02:32]}  Bb7 {[%clk 0:02:54]} 11. Ndb5 {[%clk 0:02:25]}  Nc8 {[%clk 0:02:51]} 12. Bf4 {[%clk 0:02:12]}  e5 {[%clk 0:02:39]} 13. Be3 {[%clk 0:02:08]}  d6 {[%clk 0:02:39]} 14. Nd5 {[%clk 0:02:05]}  a6 {[%clk 0:02:36]} 15. Nbc7 {[%clk 0:01:58]}  Rb8 {[%clk 0:02:32]} 16. c3 {[%clk 0:01:56]}  Ba8 {[%clk 0:02:31]} 17. Nxa6 {[%clk 0:01:53]}  Rb7 {[%clk 0:02:32]} 18. Nab4 {[%clk 0:01:49]}  Rd7 {[%clk 0:02:15]} 19. Bh3 {[%clk 0:01:30]}  f5 {[%clk 0:02:08]} 20. Qb3 {[%clk 0:01:14]}  Kh8 {[%clk 0:02:04]} 21. Rad1 {[%clk 0:00:59]}  Nxb4 {[%clk 0:01:58]} 22. Qxb4 {[%clk 0:00:55]}  f4 {[%clk 0:01:52]} 23. Bxd7 {[%clk 0:00:52]}  Qxd7 {[%clk 0:01:53]} 24. Bxb6 {[%clk 0:00:47]}  f3 {[%clk 0:01:46]} 25. Kh1 {[%clk 0:00:36]}  Qh3 {[%clk 0:01:25]} 26. Rg1 {[%clk 0:00:35]}  g5 {[%clk 0:01:15]} 27. Be3 {[%clk 0:00:31]}  Bf6 {[%clk 0:01:14]} 28. Qc4 {[%clk 0:00:27]}  Bd8 {[%clk 0:01:09]} 29. g4 {[%clk 0:00:24]}  Rg8 {[%clk 0:00:58]} 30. Qxc8 {[%clk 0:00:21]}  Ba5 {[%clk 0:00:44]} 31. Qf5 {[%clk 0:00:19]}  Rg6 {[%clk 0:00:43]} 32. Qf8+ {[%clk 0:00:18]}  Rg8 {[%clk 0:00:41]} 33. Qf6+ {[%clk 0:00:17]}  Rg7 {[%clk 0:00:42]} 34. Rg3 {[%clk 0:00:14]}  Qh4 {[%clk 0:00:39]} 35. Ne7 {[%clk 0:00:12]}  Bd8 {[%clk 0:00:29]} 36. Qf8+ {[%clk 0:00:12]}  Rg8 {[%clk 0:00:30]} 37. Qxg8# {[%clk 0:00:13]} 1-0


[Site "https://www.chess.com"]

[Event "Titled Tuesday Blitz August 22 Early 2023"]
[White "Buraczewski, Rafal"]
[Black "Marn, Jan"]
[WhiteFideId "1155245"]
[BlackFideId "14619245"]
[WhiteElo "2120"]
[BlackElo "2481"]
[Result "0-1"]
[Round "4"]
[TimeControl "180+1"]
[Date "2023.08.22"]
[WhiteClock "0:00:00"]
[BlackClock "0:00:04"]
[Board "139"]

1. d4 {[%clk 0:03:00]}  e6 {[%clk 0:02:56]} 2. c4 {[%clk 0:03:00]}  f5 {[%clk 0:02:55]} 3. Nf3 {[%clk 0:03:00]}  Nf6 {[%clk 0:02:55]} 4. Nc3 {[%clk 0:03:00]}  Bb4 {[%clk 0:02:55]} 5. Qc2 {[%clk 0:02:59]}  O-O {[%clk 0:02:55]} 6. g3 {[%clk 0:02:58]}  b6 {[%clk 0:02:54]} 7. Bg2 {[%clk 0:02:57]}  Bb7 {[%clk 0:02:54]} 8. O-O {[%clk 0:02:58]}  Ne4 {[%clk 0:02:41]} 9. Nd2 {[%clk 0:02:48]}  d5 {[%clk 0:02:37]} 10. cxd5 {[%clk 0:02:38]}  exd5 {[%clk 0:02:37]} 11. f3 {[%clk 0:02:33]}  Nf6 {[%clk 0:02:27]} 12. Qb3 {[%clk 0:02:22]}  Bxc3 {[%clk 0:02:22]} 13. bxc3 {[%clk 0:02:23]}  Kh8 {[%clk 0:02:22]} 14. Ba3 {[%clk 0:02:18]}  Re8 {[%clk 0:02:22]} 15. Rae1 {[%clk 0:02:18]}  Nbd7 {[%clk 0:02:22]} 16. c4 {[%clk 0:01:39]}  dxc4 {[%clk 0:02:20]} 17. Nxc4 {[%clk 0:01:40]}  Bd5 {[%clk 0:02:13]} 18. Qc2 {[%clk 0:01:40]}  c5 {[%clk 0:01:41]} 19. Nd6 {[%clk 0:01:35]}  Rf8 {[%clk 0:01:39]} 20. dxc5 {[%clk 0:01:33]}  Nxc5 {[%clk 0:01:37]} 21. Bxc5 {[%clk 0:01:33]}  bxc5 {[%clk 0:01:37]} 22. Nxf5 {[%clk 0:01:32]}  Qb6 {[%clk 0:01:33]} 23. e4 {[%clk 0:01:26]}  Bg8 {[%clk 0:01:31]} 24. Rc1 {[%clk 0:01:19]}  c4+ {[%clk 0:01:23]} 25. Kh1 {[%clk 0:01:19]}  Nd7 {[%clk 0:01:23]} 26. Ne7 {[%clk 0:01:14]}  Bf7 {[%clk 0:01:23]} 27. f4 {[%clk 0:01:12]}  Nc5 {[%clk 0:01:16]} 28. e5 {[%clk 0:01:03]}  Rad8 {[%clk 0:01:15]} 29. Rb1 {[%clk 0:01:00]}  Qa6 {[%clk 0:01:07]} 30. Nc6 {[%clk 0:00:50]}  Rc8 {[%clk 0:00:58]} 31. Nb4 {[%clk 0:00:50]}  Qa5 {[%clk 0:00:49]} 32. f5 {[%clk 0:00:48]}  Na6 {[%clk 0:00:15]} 33. Nxa6 {[%clk 0:00:38]}  Qxa6 {[%clk 0:00:16]} 34. e6 {[%clk 0:00:39]}  Be8 {[%clk 0:00:15]} 35. Qc3 {[%clk 0:00:12]}  Bc6 {[%clk 0:00:13]} 36. Rb2 {[%clk 0:00:05]}  Bxg2+ {[%clk 0:00:12]} 37. Rxg2 {[%clk 0:00:06]}  Rf6 {[%clk 0:00:10]} 38. g4 {[%clk 0:00:06]}  Rcf8 {[%clk 0:00:09]} 39. e7 {[%clk 0:00:03]}  Re8 {[%clk 0:00:06]} 40. g5 {[%clk 0:00:04]}  Rf7 {[%clk 0:00:06]} 41. f6 {[%clk 0:00:04]}  gxf6 {[%clk 0:00:05]} 42. g6 {[%clk 0:00:02]}  hxg6 {[%clk 0:00:03]} 43. Rxg6 {[%clk 0:00:02]}  Qc6+ {[%clk 0:00:03]} 44. Kg1 {[%clk 0:00:03]}  Rexe7 {[%clk 0:00:03]} 45. Qh3+ {[%clk 0:00:02]}  Rh7 {[%clk 0:00:02]} 46. Rh6 {[%clk 0:00:03]}  Rg7+ {[%clk 0:00:03]} 47. Kf2 {[%clk 0:00:02]}  Qc5+ {[%clk 0:00:02]} 48. Ke1 {[%clk 0:00:02]}  Re7+ {[%clk 0:00:02]} 49. Kd1 {[%clk 0:00:02]}  Qd4+ {[%clk 0:00:02]} 50. Kc1 {[%clk 0:00:02]}  Qa1+ {[%clk 0:00:02]} 51. Kc2 {[%clk 0:00:02]}  Qxa2+ {[%clk 0:00:02]} 52. Kc3 {[%clk 0:00:02]}  Qb3+ {[%clk 0:00:03]} 53. Kd4 {[%clk 0:00:02]}  Qxh3 {[%clk 0:00:04]} 54. Rxh3 {[%clk 0:00:00]}  Rxh3 {[%clk 0:00:04]} 0-1


[Site "https://www.chess.com"]

[Event "Titled Tuesday Blitz August 22 Early 2023"]
[White "Jakubowski, Krzysztof"]
[Black "Shohat, Yotam"]
[WhiteFideId "1112848"]
[BlackFideId "2813955"]
[WhiteElo "2647"]
[BlackElo "2421"]
[Result "1-0"]
[Round "4"]
[TimeControl "180+1"]
[Date "2023.08.22"]
[WhiteClock "0:01:47"]
[BlackClock "0:01:10"]
[Board "144"]

1. e4 {[%clk 0:03:00]}  c5 {[%clk 0:02:58]} 2. Nf3 {[%clk 0:02:59]}  d6 {[%clk 0:02:57]} 3. d4 {[%clk 0:02:58]}  cxd4 {[%clk 0:02:58]} 4. Nxd4 {[%clk 0:02:57]}  Nf6 {[%clk 0:02:58]} 5. Nc3 {[%clk 0:02:56]}  a6 {[%clk 0:02:58]} 6. Be3 {[%clk 0:02:56]}  e5 {[%clk 0:02:58]} 7. Nb3 {[%clk 0:02:56]}  Be6 {[%clk 0:02:56]} 8. h3 {[%clk 0:02:55]}  h5 {[%clk 0:02:52]} 9. f4 {[%clk 0:02:54]}  exf4 {[%clk 0:02:43]} 10. Bxf4 {[%clk 0:02:54]}  Nc6 {[%clk 0:02:43]} 11. Qf3 {[%clk 0:02:53]}  Ne5 {[%clk 0:02:39]} 12. Qe3 {[%clk 0:02:53]}  Be7 {[%clk 0:02:33]} 13. O-O-O {[%clk 0:02:52]}  Qc7 {[%clk 0:02:30]} 14. Nd4 {[%clk 0:02:51]}  h4 {[%clk 0:02:19]} 15. Nf5 {[%clk 0:02:44]}  Bxf5 {[%clk 0:02:09]} 16. exf5 {[%clk 0:02:44]}  Rc8 {[%clk 0:02:09]} 17. Rd2 {[%clk 0:02:00]}  O-O {[%clk 0:02:06]} 18. Bg5 {[%clk 0:01:56]}  Nh5 {[%clk 0:01:10]} 19. Nd5 {[%clk 0:01:47]} 1-0


[Site "https://www.chess.com"]

[Event "Titled Tuesday Blitz August 22 Early 2023"]
[White "Haug, Havard"]
[Black "Efremov, Vladislav"]
[WhiteFideId "1547887"]
[BlackFideId "44159935"]
[WhiteElo "2634"]
[BlackElo "2419"]
[Result "1-0"]
[Round "4"]
[TimeControl "180+1"]
[Date "2023.08.22"]
[WhiteClock "0:01:35"]
[BlackClock "0:00:00"]
[Board "146"]

1. e4 {[%clk 0:03:00]}  c5 {[%clk 0:02:59]} 2. c3 {[%clk 0:03:00]}  d5 {[%clk 0:02:59]} 3. exd5 {[%clk 0:03:01]}  Qxd5 {[%clk 0:03:00]} 4. d4 {[%clk 0:03:01]}  Nf6 {[%clk 0:03:00]} 5. Nf3 {[%clk 0:03:01]}  Bg4 {[%clk 0:03:00]} 6. dxc5 {[%clk 0:03:00]}  Qxd1+ {[%clk 0:02:50]} 7. Kxd1 {[%clk 0:03:01]}  e5 {[%clk 0:02:50]} 8. b4 {[%clk 0:02:56]}  e4 {[%clk 0:02:49]} 9. h3 {[%clk 0:02:55]}  Bh5 {[%clk 0:02:50]} 10. g4 {[%clk 0:02:55]}  Nxg4 {[%clk 0:02:50]} 11. hxg4 {[%clk 0:02:55]}  Bxg4 {[%clk 0:02:51]} 12. Rg1 {[%clk 0:02:53]}  Bxf3+ {[%clk 0:02:50]} 13. Kc2 {[%clk 0:02:53]}  a5 {[%clk 0:02:45]} 14. Bf4 {[%clk 0:02:52]}  Nc6 {[%clk 0:02:42]} 15. Bb5 {[%clk 0:02:50]}  O-O-O {[%clk 0:02:36]} 16. Bxc6 {[%clk 0:02:45]}  bxc6 {[%clk 0:02:36]} 17. Nd2 {[%clk 0:02:45]}  Be2 {[%clk 0:02:25]} 18. Nb3 {[%clk 0:02:25]}  Bd3+ {[%clk 0:02:23]} 19. Kb2 {[%clk 0:02:23]}  axb4 {[%clk 0:02:21]} 20. cxb4 {[%clk 0:02:24]}  Be7 {[%clk 0:02:20]} 21. Be5 {[%clk 0:02:22]}  f6 {[%clk 0:02:14]} 22. Rxg7 {[%clk 0:02:20]}  Rd7 {[%clk 0:01:52]} 23. Rxe7 {[%clk 0:02:14]}  Rxe7 {[%clk 0:01:51]} 24. Bxf6 {[%clk 0:02:14]}  Ree8 {[%clk 0:01:50]} 25. Bxh8 {[%clk 0:02:14]}  Rxh8 {[%clk 0:01:51]} 26. Nd4 {[%clk 0:02:14]}  Kd7 {[%clk 0:01:50]} 27. Rg1 {[%clk 0:02:11]}  h5 {[%clk 0:01:43]} 28. Rg7+ {[%clk 0:02:07]}  Kc8 {[%clk 0:01:41]} 29. Nxc6 {[%clk 0:02:03]}  h4 {[%clk 0:01:39]} 30. a4 {[%clk 0:02:00]}  h3 {[%clk 0:01:37]} 31. b5 {[%clk 0:01:59]}  Rh6 {[%clk 0:01:05]} 32. Na7+ {[%clk 0:01:46]}  Kb8 {[%clk 0:00:44]} 33. c6 {[%clk 0:01:43]}  Rg6 {[%clk 0:00:10]} 34. Rxg6 {[%clk 0:01:38]}  e3 {[%clk 0:00:05]} 35. Rg8+ {[%clk 0:01:37]}  Kxa7 {[%clk 0:00:04]} 36. fxe3 {[%clk 0:01:36]}  h2 {[%clk 0:00:02]} 37. Rh8 {[%clk 0:01:36]}  Kb6 {[%clk 0:00:00]} 38. Rxh2 {[%clk 0:01:35]} 1-0


[Site "https://www.chess.com"]

[Event "Titled Tuesday Blitz August 22 Early 2023"]
[White "Kochiev, Ivan"]
[Black "Namitbir Singh Walia"]
[WhiteFideId "2917890"]
[BlackFideId "35071068"]
[WhiteElo "2590"]
[BlackElo "2414"]
[Result "0-1"]
[Round "4"]
[TimeControl "180+1"]
[Date "2023.08.22"]
[WhiteClock "0:01:19"]
[BlackClock "0:00:38"]
[Board "150"]

1. e4 {[%clk 0:03:00]}  c5 {[%clk 0:02:59]} 2. Nf3 {[%clk 0:03:01]}  Nc6 {[%clk 0:02:59]} 3. d4 {[%clk 0:03:00]}  cxd4 {[%clk 0:03:00]} 4. Nxd4 {[%clk 0:03:01]}  g6 {[%clk 0:03:00]} 5. c4 {[%clk 0:03:02]}  Nf6 {[%clk 0:02:48]} 6. Nc3 {[%clk 0:03:01]}  Nxd4 {[%clk 0:02:48]} 7. Qxd4 {[%clk 0:03:01]}  d6 {[%clk 0:02:49]} 8. Be3 {[%clk 0:02:55]}  Bg7 {[%clk 0:02:49]} 9. f3 {[%clk 0:02:56]}  O-O {[%clk 0:02:49]} 10. Qd2 {[%clk 0:02:56]}  Qa5 {[%clk 0:02:24]} 11. Be2 {[%clk 0:02:45]}  Be6 {[%clk 0:02:24]} 12. O-O {[%clk 0:02:29]}  Rfc8 {[%clk 0:02:16]} 13. b3 {[%clk 0:02:25]}  Nd7 {[%clk 0:01:42]} 14. Rac1 {[%clk 0:02:23]}  a6 {[%clk 0:01:22]} 15. Nd5 {[%clk 0:01:48]}  Qxd2 {[%clk 0:01:19]} 16. Bxd2 {[%clk 0:01:49]}  Bxd5 {[%clk 0:01:20]} 17. cxd5 {[%clk 0:01:39]}  b5 {[%clk 0:01:18]} 18. Be3 {[%clk 0:01:34]}  Bb2 {[%clk 0:01:11]} 19. Rb1 {[%clk 0:01:30]}  Ba3 {[%clk 0:00:46]} 20. Bd3 {[%clk 0:01:30]}  Rc3 {[%clk 0:00:43]} 21. Rfd1 {[%clk 0:01:29]}  Ne5 {[%clk 0:00:40]} 22. Bd4 {[%clk 0:01:19]}  Rxd3 {[%clk 0:00:38]} 23. Bxe5 {[%clk 0:01:19]}  Rxd1+ {[%clk 0:00:38]} 24. Rxd1 {[%clk 0:01:19]}  dxe5 {[%clk 0:00:38]} 0-1


[Site "https://www.chess.com"]

[Event "Titled Tuesday Blitz August 22 Early 2023"]
[White "ExchangeAB"]
[Black "Shahaliyev, Ismayil"]
[BlackFideId "13406388"]
[WhiteElo "2413"]
[BlackElo "2582"]
[Result "1/2-1/2"]
[Round "4"]
[TimeControl "180+1"]
[Date "2023.08.22"]
[WhiteClock "0:00:22"]
[BlackClock "0:00:18"]
[Board "152"]

1. d4 {[%clk 0:03:00]}  Nf6 {[%clk 0:02:59]} 2. Nc3 {[%clk 0:03:01]}  e6 {[%clk 0:02:59]} 3. e4 {[%clk 0:03:00]}  d5 {[%clk 0:02:56]} 4. exd5 {[%clk 0:02:58]}  exd5 {[%clk 0:02:54]} 5. Bd3 {[%clk 0:02:58]}  Bg4 {[%clk 0:02:48]} 6. Nge2 {[%clk 0:02:58]}  Bd6 {[%clk 0:02:39]} 7. f3 {[%clk 0:02:57]}  Bh5 {[%clk 0:02:39]} 8. Nb5 {[%clk 0:02:57]}  Bg6 {[%clk 0:02:34]} 9. Nxd6+ {[%clk 0:02:55]}  Qxd6 {[%clk 0:02:35]} 10. c3 {[%clk 0:02:45]}  Bxd3 {[%clk 0:02:30]} 11. Qxd3 {[%clk 0:02:46]}  O-O {[%clk 0:02:29]} 12. Bf4 {[%clk 0:02:45]}  Qb6 {[%clk 0:02:26]} 13. O-O-O {[%clk 0:02:44]}  a5 {[%clk 0:02:19]} 14. g4 {[%clk 0:02:43]}  a4 {[%clk 0:02:19]} 15. Be5 {[%clk 0:02:41]}  Nbd7 {[%clk 0:02:12]} 16. a3 {[%clk 0:02:37]}  Rfe8 {[%clk 0:02:01]} 17. Bxf6 {[%clk 0:02:31]}  Qxf6 {[%clk 0:02:00]} 18. Ng3 {[%clk 0:02:28]}  Qf4+ {[%clk 0:01:58]} 19. Rd2 {[%clk 0:02:14]}  Re3 {[%clk 0:01:58]} 20. Qf5 {[%clk 0:02:13]}  Qxf5 {[%clk 0:01:42]} 21. Nxf5 {[%clk 0:02:14]}  Rxf3 {[%clk 0:01:43]} 22. Ne7+ {[%clk 0:02:13]}  Kf8 {[%clk 0:01:43]} 23. Nxd5 {[%clk 0:02:14]}  c6 {[%clk 0:01:44]} 24. Nb4 {[%clk 0:02:10]}  Re8 {[%clk 0:01:44]} 25. Nd3 {[%clk 0:02:06]}  Re4 {[%clk 0:01:39]} 26. Rg1 {[%clk 0:02:01]}  Ke7 {[%clk 0:01:25]} 27. Kc2 {[%clk 0:02:01]}  Kd6 {[%clk 0:01:23]} 28. Rgg2 {[%clk 0:01:34]}  b6 {[%clk 0:01:21]} 29. Rgf2 {[%clk 0:01:21]}  Ree3 {[%clk 0:01:13]} 30. Rxf3 {[%clk 0:01:21]}  Rxf3 {[%clk 0:01:14]} 31. Rf2 {[%clk 0:01:20]}  Rxf2+ {[%clk 0:01:13]} 32. Nxf2 {[%clk 0:01:21]}  Kd5 {[%clk 0:01:07]} 33. Kd3 {[%clk 0:01:21]}  b5 {[%clk 0:01:08]} 34. Nd1 {[%clk 0:01:20]}  Nb6 {[%clk 0:01:03]} 35. Ne3+ {[%clk 0:01:20]}  Ke6 {[%clk 0:01:04]} 36. c4 {[%clk 0:00:55]}  Nxc4 {[%clk 0:00:39]} 37. Nxc4 {[%clk 0:00:56]}  bxc4+ {[%clk 0:00:40]} 38. Kxc4 {[%clk 0:00:57]}  h5 {[%clk 0:00:41]} 39. h3 {[%clk 0:00:39]}  hxg4 {[%clk 0:00:41]} 40. hxg4 {[%clk 0:00:40]}  f5 {[%clk 0:00:39]} 41. gxf5+ {[%clk 0:00:40]}  Kxf5 {[%clk 0:00:40]} 42. b3 {[%clk 0:00:37]}  axb3 {[%clk 0:00:31]} 43. Kxb3 {[%clk 0:00:38]}  g5 {[%clk 0:00:30]} 44. a4 {[%clk 0:00:28]}  g4 {[%clk 0:00:28]} 45. a5 {[%clk 0:00:28]}  g3 {[%clk 0:00:27]} 46. a6 {[%clk 0:00:29]}  g2 {[%clk 0:00:28]} 47. a7 {[%clk 0:00:29]}  g1=Q {[%clk 0:00:28]} 48. a8=Q {[%clk 0:00:29]}  Qb1+ {[%clk 0:00:23]} 49. Kc3 {[%clk 0:00:29]}  Qc1+ {[%clk 0:00:19]} 50. Kd3 {[%clk 0:00:29]}  Qd1+ {[%clk 0:00:19]} 51. Kc3 {[%clk 0:00:29]}  Qe1+ {[%clk 0:00:18]} 52. Kd3 {[%clk 0:00:30]}  Qe4+ {[%clk 0:00:18]} 53. Kc3 {[%clk 0:00:30]}  Qf3+ {[%clk 0:00:19]} 54. Kc4 {[%clk 0:00:30]}  Qe2+ {[%clk 0:00:18]} 55. Kc3 {[%clk 0:00:30]}  Qe6 {[%clk 0:00:16]} 56. Qa5+ {[%clk 0:00:29]}  Ke4 {[%clk 0:00:16]} 57. Qg5 {[%clk 0:00:26]}  Qh3+ {[%clk 0:00:14]} 58. Kb2 {[%clk 0:00:17]}  Kxd4 {[%clk 0:00:05]} 59. Qf6+ {[%clk 0:00:17]}  Kc5 {[%clk 0:00:06]} 60. Qe7+ {[%clk 0:00:17]}  Kd5 {[%clk 0:00:06]} 61. Qf7+ {[%clk 0:00:16]}  Qe6 {[%clk 0:00:06]} 62. Qf3+ {[%clk 0:00:16]}  Qe4 {[%clk 0:00:07]} 63. Qf7+ {[%clk 0:00:16]}  Kc5 {[%clk 0:00:08]} 64. Qa7+ {[%clk 0:00:16]}  Kd6 {[%clk 0:00:07]} 65. Qb8+ {[%clk 0:00:16]}  Ke7 {[%clk 0:00:07]} 66. Qc7+ {[%clk 0:00:15]}  Ke6 {[%clk 0:00:08]} 67. Kc3 {[%clk 0:00:15]}  Qd5 {[%clk 0:00:07]} 68. Qc8+ {[%clk 0:00:14]}  Qd7 {[%clk 0:00:07]} 69. Qxd7+ {[%clk 0:00:14]}  Kxd7 {[%clk 0:00:07]} 70. Kc4 {[%clk 0:00:14]}  Kd6 {[%clk 0:00:07]} 71. Kd4 {[%clk 0:00:14]}  c5+ {[%clk 0:00:07]} 72. Kc4 {[%clk 0:00:15]}  Kc6 {[%clk 0:00:08]} 73. Kc3 {[%clk 0:00:16]}  Kd5 {[%clk 0:00:09]} 74. Kd3 {[%clk 0:00:16]}  c4+ {[%clk 0:00:10]} 75. Kc3 {[%clk 0:00:17]}  Kc5 {[%clk 0:00:11]} 76. Kc2 {[%clk 0:00:17]}  Kd4 {[%clk 0:00:12]} 77. Kd2 {[%clk 0:00:18]}  Kd5 {[%clk 0:00:12]} 78. Kc3 {[%clk 0:00:18]}  Kc5 {[%clk 0:00:12]} 79. Kc2 {[%clk 0:00:19]}  Kb4 {[%clk 0:00:13]} 80. Kb2 {[%clk 0:00:19]}  c3+ {[%clk 0:00:14]} 81. Kc2 {[%clk 0:00:20]}  Kc4 {[%clk 0:00:14]} 82. Kc1 {[%clk 0:00:20]}  Kd4 {[%clk 0:00:15]} 83. Kc2 {[%clk 0:00:21]}  Kc4 {[%clk 0:00:16]} 84. Kc1 {[%clk 0:00:21]}  Kb3 {[%clk 0:00:17]} 85. Kb1 {[%clk 0:00:22]}  c2+ {[%clk 0:00:17]} 86. Kc1 {[%clk 0:00:22]}  Kc3 {[%clk 0:00:18]} 1/2-1/2


[Site "https://www.chess.com"]